Workbook

Sheet READ ME
B2: SN65DSI86 Register Calculator
B5: This spreadsheet is intended to take information such as the EDID information and the DSI information and output the register values for the SN65DSI86.
B6: The information is inputted into the Inputs_Page and the settings are automatically calculated and put into the other pages below.
B7: The calculated values are outputted into the Script_ASSR, Qualcomm_ASSR, Scrip_NoASSR and Qualcomm_noASSR pages.
B9: Step 1: If you do not have the EDID decoded use the EDID_Formatting_Space Page to get the raw EDID in the correct form for the calculator.
B10: Step 2: Enter the EDID information manually by using the panels datasheet or enter use the EDID registers values into the starting page.
B11: Step 3: For the category labeled "EDID Input in Datasheet Table" select "Yes" if the values that were entered are from the datasheet, select "No" if the EDID register values were entered.
B12: Step 4: Fill in the table labeled "DP/DSI Settings" with the parameters from your application.
B13: Step 5: If you are using LeftRight mode next fill out the "LEFTRIGHT MODE ONLY" table next if not please ignore that table.
B14: Step 6: If you would like the DSI86 to output the color bar pattern enable the color bar pattern in the "Color Bar" table.
B15: Step 7: If any of the values in the "Output Values" tables read as "NAN" or value too large please try to input your numbers again.
B17: Step 1: | C17: If you do not have the EDID decoded use the EDID_Formatting_Space Page to get the raw EDID in the correct form for the calculator.
B21: Step 2: | C21: Enter the EDID information manually by using the panels datasheet or enter use the EDID registers values into the starting page.
B43: Step 3: | C43: For the category labeled "EDID Input in Datasheet Table" select "Yes" if the values that were entered are from the datasheet
B65: Step 4: | C65: Fill in the table labeled "DP/DSI Settings" with the parameters from your application.
B87: Step 5: | C87: If you are using LeftRight mode next fill out the "LEFTRIGHT MODE ONLY" table next if not please ignore that table.
B109: Step 6: | C109: If you would like the DSI86 to output the color bar pattern enable the color bar pattern in the "Color Bar" table.
B131: Step 7: | C131: If any of the values in the "Output Values" tables read as "NAN" or value too large please try to input your numbers again.

Sheet Main_Inputs_Page
B2: SN65DSI86 Register Calculator | E2: Color Legend
E3: Calculated OUTPUTS
E4: INPUTS
B6: Datasheet EDID Information | C6: Manual Inputs | E6: Category's | F6: DP/DSI Settings | H6: EDID Registers Table | I6: 0 | J6: 1 | K6: 2 | L6: 3 | M6: 4 | N6: 5 | O6: 6 | P6: 7 | Q6: 8 | R6: 9 | S6: A | T6: B | U6: C | V6: D | W6: E | X6: F
B7: Panel Vendor | C7: InfoVision | E7: # of DP Lanes for DSI86 | F7: 4 | H7: 0 | I7: 0 | J7: FF | K7: FF | L7: FF | M7: FF | N7: FF | O7: FF | P7: 0 | Q7: 26 | R7: CF | S7: 14 | T7: 34 | U7: 0 | V7: 0 | W7: 0 | X7: 0
B8: Panel Model# | C8: M125NWF4 R0 | E8: # of DP Lanes for DP Panel | F8: 4 | H8: 10 | I8: 0 | J8: 1C | K8: 1 | L8: 4 | M8: A5 | N8: 1D | O8: 11 | P8: 78 | Q8: 0A | R8: 1D | S8: 30 | T8: A7 | U8: 50 | V8: 47 | W8: 97 | X8: 27
B9: Resolution | C9: 2160x1440 | E9: Max DP datarate for DP Panel | F9: HBR | H9: 20 | I9: 13 | J9: 50 | K9: 54 | L9: 0 | M9: 0 | N9: 0 | O9: 1 | P9: 1 | Q9: 1 | R9: 1 | S9: 1 | T9: 1 | U9: 1 | V9: 1 | W9: 1 | X9: 1
B10: Pixel Clock | C10: 206.02 | E10: # of DSI A Lanes | F10: 4 | H10: 30 | I10: 1 | J10: 1 | K10: 1 | L10: 1 | M10: 1 | N10: 1 | O10: 70 | P10: 6C | Q10: 80 | R10: A0 | S10: 70 | T10: 38 | U10: 20 | V10: 40 | W10: 18 | X10: 30
B11: Horizontal Active (pixels) | C11: 2160 | E11: # of DSI B Lanes | F11: 0 | H11: 40 | I11: 3C | J11: 0 | K11: 26 | L11: A5 | M11: 10 | N11: 0 | O11: 0 | P11: 19 | Q11: 0 | R11: 0 | S11: 0 | T11: FE | U11: 0 | V11: 4D | W11: 31 | X11: 33
B12: Horizontal Blanking (pixels) | C12: 160 | E12: DSI Video mode | F12: RGB666 | H12: 50 | I12: 33 | J12: 4E | K12: 56 | L12: 46 | M12: 33 | N12: 20 | O12: 52 | P12: 32 | Q12: 20 | R12: 0A | S12: 0 | T12: 0 | U12: 0 | V12: 3 | W12: 0 | X12: 4
B13: Vertical Active (lines) | C13: 1440 | E13: DSI Channel Mode | F13: Single | H13: 60 | I13: 36 | J13: FF | K13: 5 | L13: 3C | M13: 8D | N13: 25 | O13: 13 | P13: 31 | Q13: 8D | R13: 0 | S13: 0 | T13: 0 | U13: 0 | V13: 0 | W13: 0 | X13: 3
B14: Vertical Blanking (lines) | C14: 40 | E14: Even/Odd or Left/Right | F14: EvenOdd | H14: 70 | I14: 0 | J14: 6 | K14: 18 | L14: FF | M14: 0F | N14: 3C | O14: 3B | P14: 24 | Q14: 8 | R14: 31 | S14: 3B | T14: 1 | U14: 1 | V14: 0 | W14: 0 | X14: BA
B15: Horizontal Sync Offset or FrontPorch (pixels) | C15: 48 | E15: REFCLK FREQ (MHz) | F15: 19.2
B16: Horizontal Sync Pulse Width (pixels) | C16: 32 | H16: Please use the EDID_Formatting_Space to format the EDID and copy and paste the "Values (V)" into the Table
B17: Vertical Sync Offset or FrontPorch (lines) | C17: 3 | E17: LEFTRIGHT MODE ONLY
B18: Vertical Sync Pulse Width (lines) | C18: 10 | E18: Right Pixel Start | F18: 1440
B19: Hsync Polarity | C19: NEGATIVE | E19: LEFT HACTIVE | F19: =DSI86_INPUTS!F17 -> 1439
B20: Vsync Polarity | C20: NEGATIVE | E20: RIGHT HACTIVE | F20: =DSI86_INPUTS!F18 -> 481
E21: LEFT CROP | F21: 0
B22: EDID Inputs in Datasheet Table | C22: No | E22: RIGHT CROP | F22: 0
E23: HACTIVE with Crop | F23: =DSI86_INPUTS!F21 -> 1920
B24: Category | C24: Output Values
B25: Min DSI A clk rate (MHz) | C25: =Calcs!F11 -> 624.6 | E25: Color Bar
B26: Min DSI B clk rate (MHz) | C26: =Calcs!F12 -> 624.6 | E26: Enable Color Bar | F26: ENABLE
B27: Optimum # of Lanes | C27: =Calcs!F23 -> 4 | E27: Color Bar Pattern | F27: Vertical Colors: 3 Color
B28: Optimum Daterate | C28: =Calcs!F24 -> RBR
E29: If the above calculations give values that are not a number it means there was an error in either the inputted data or the calculations.
E30: Many of the calc. sheets are hidden to unhide them go to "Format" in the "Home" tab go to "Hide & Unhide" click "Unhide Sheet..."

Sheet DSI86_INPUTS (hidden)
B2: Category | C2: EDID page Inputs | E2: Category | F2: DP/DSI Settings | H2: Color Legend
B3: Panel Vendor | C3: =EDID!C$3 -> InfoVision | E3: # of DP Lanes for DSI86 | F3: =Main_Inputs_Page!F7 -> 4 | H3: Calculated OUTPUTS
B4: Panel Model# | C4: =EDID!C$4 -> M125NWF4 R0 | E4: # of DP Lanes for DP Panel | F4: =Main_Inputs_Page!F8 -> 4 | H4: INPUTS
B5: Resolution | C5: =EDID!C$5 -> 2160x1440 | E5: Max DP datarate for DP Panel | F5: =Main_Inputs_Page!F9 -> HBR
B6: Hsync (in pixels) | C6: =EDID!C$17 -> 48 | E6: # of DSI A Lanes | F6: =Main_Inputs_Page!F10 -> 4
B7: HSync POLARITY | C7: =EDID!C$15 -> NEGATIVE | E7: # of DSI B Lanes | F7: =Main_Inputs_Page!F11 -> 0
B8: HBPorch (in pixels) | C8: =EDID!C$18 -> 88 | E8: DSI Video mode | F8: =Main_Inputs_Page!F12 -> RGB666
B9: HFPorch (in pixels) | C9: =EDID!C$19 -> 24 | E9: DSI Channel Mode | F9: =Main_Inputs_Page!F13 -> Single
B10: Hactive (in pixels) | C10: =EDID!C$20 -> 1920 | E10: Even/Odd or Left/Right | F10: =Main_Inputs_Page!F14 -> EvenOdd
B11: Vsync (in Lines) | C11: =EDID!C$21 -> 18 | E11: REFCLK FREQ (MHz) | F11: =Main_Inputs_Page!F15 -> 19.2
B12: Vsync Polarity | C12: =EDID!C$16 -> NEGATIVE | E12: Enable Color Bar | F12: =Main_Inputs_Page!F26 -> ENABLE
B13: VBPorch (in Lines) | C13: =EDID!C$22 -> 11 | E13: Color Bar Pattern | F13: =Main_Inputs_Page!F27 -> Vertical Colors: 3 Color
B14: VFPorch (in Lines) | C14: =EDID!C$23 -> 3
B15: Vactive (in Lines) | C15: =EDID!C$24 -> 1080 | E15: LEFTRIGHT MODE ONLY
B16: Pixel CLK(MHz) - nominal | C16: =EDID!C$6 -> 277.6 | E16: Right Pixel Start | F16: =Main_Inputs_Page!F18 -> 1440
E17: LEFT HACTIVE | F17: =F$16-1 -> 1439
E18: RIGHT HACTIVE | F18: =C$10-F$16+1 -> 481
E19: LEFT CROP | F19: =Main_Inputs_Page!F21 -> 0
E20: RIGHT CROP | F20: =Main_Inputs_Page!F22 -> 0
E21: HACTIVE with Crop | F21: =F$17+F$18+F$19+F$20 -> 1920
B41: =IF(F$7=0,1,IF(F$10="EvenOdd",IF(F$6=F$7,1,"Wrong"),1)) -> 1

Sheet EDID_Formatting_Space
B2: EDID Formatting Space
B3: Use the this space to format the EDIE registers in a way that the script can read.
B4: 1. Copy the EDID registers and paste them using "Matching Destination Formatting (M)"
B5: 2. Select the data and under the "Data" section, select "Text to Columns".
B6: 3. Select "Fixed Width" and then click "Finish"
B8: Step 1:
I10: [0000] | J10: 0 | K10: FF | L10: FF | M10: FF | N10: FF | O10: FF | P10: FF | Q10: 0 | R10: 26 | S10: CF | T10: 14 | U10: 34 | V10: 0 | W10: 0 | X10: 0 | Y10: 0
I11: [0010] | J11: 0 | K11: 1C | L11: 1 | M11: 4 | N11: A5 | O11: 1D | P11: 11 | Q11: 78 | R11: 0A | S11: 1D | T11: 30 | U11: A7 | V11: 50 | W11: 47 | X11: 97 | Y11: 27
I12: [0020] | J12: 13 | K12: 50 | L12: 54 | M12: 0 | N12: 0 | O12: 0 | P12: 1 | Q12: 1 | R12: 1 | S12: 1 | T12: 1 | U12: 1 | V12: 1 | W12: 1 | X12: 1 | Y12: 1
I13: [0030] | J13: 1 | K13: 1 | L13: 1 | M13: 1 | N13: 1 | O13: 1 | P13: 70 | Q13: 6C | R13: 80 | S13: A0 | T13: 70 | U13: 38 | V13: 20 | W13: 40 | X13: 18 | Y13: 30
I14: [0040] | J14: 3C | K14: 0 | L14: 26 | M14: A5 | N14: 10 | O14: 0 | P14: 0 | Q14: 19 | R14: 0 | S14: 0 | T14: 0 | U14: FE | V14: 0 | W14: 4D | X14: 31 | Y14: 33
I15: [0050] | J15: 33 | K15: 4E | L15: 56 | M15: 46 | N15: 33 | O15: 20 | P15: 52 | Q15: 32 | R15: 20 | S15: 0A | T15: 0 | U15: 0 | V15: 0 | W15: 3 | X15: 0 | Y15: 4
I16: [0060] | J16: 36 | K16: FF | L16: 5 | M16: 3C | N16: 8D | O16: 25 | P16: 13 | Q16: 31 | R16: 8D | S16: 0 | T16: 0 | U16: 0 | V16: 0 | W16: 0 | X16: 0 | Y16: 3
I17: [0070] | J17: 0 | K17: 6 | L17: 18 | M17: FF | N17: 0F | O17: 3C | P17: 3B | Q17: 24 | R17: 8 | S17: 31 | T17: 3B | U17: 1 | V17: 1 | W17: 0 | X17: 0 | Y17: BA
I18: [0080] | J18: 0 | K18: 0 | L18: 0 | M18: 0 | N18: 0 | O18: 0 | P18: 0 | Q18: 0 | R18: 0 | S18: 1f | T18: 7c | U18: f0 | V18: c1 | W18: 7 | X18: 1f | Y18: 7c
I19: [0090] | J19: f0 | K19: c1 | L19: 7 | M19: 20 | N19: 80 | O19: 0 | P19: 00 | Q19: 04 | R19: 1 | S19: 0 | T19: 0 | U19: 0 | V19: 0 | W19: 0 | X19: 0 | Y19: 0
I20: [00a0] | J20: 1 | K20: ff | L20: ff | M20: 0 | N20: 0 | O20: 0 | P20: 0 | Q20: 0 | R20: 0 | S20: 0 | T20: 0 | U20: 0 | V20: 0 | W20: 0 | X20: 0 | Y20: 0
B21: Step 2: | I21: [00b0] | J21: 4 | K21: 78 | L21: ac | M21: ac | N21: 8 | O21: 6c | P21: 9c | Q21: 9c | R21: 0c | S21: 5c | T21: 5c | U21: 5c | V21: 0c | W21: 0c | X21: 0c | Y21: 0c
I22: [00c0] | J22: 3f | K22: 3f | L22: 0f | M22: 0 | N22: 0 | O22: 0 | P22: 0 | Q22: 0 | R22: 0 | S22: 0 | T22: 0 | U22: 0 | V22: 0 | W22: 0 | X22: 0 | Y22: 0
I23: [00d0] | J23: 0 | K23: 0 | L23: 0 | M23: 0 | N23: 0 | O23: 0 | P23: 0 | Q23: 0 | R23: 0 | S23: 0 | T23: 0 | U23: 0 | V23: 0 | W23: 0 | X23: 0 | Y23: 0
I24: [00e0] | J24: 0 | K24: 0 | L24: 0 | M24: 0 | N24: 0 | O24: 0 | P24: 0 | Q24: 0 | R24: 0 | S24: 0 | T24: 0 | U24: 0 | V24: 0 | W24: 0 | X24: 0 | Y24: 0
I25: [00f0] | J25: 0 | K25: 0 | L25: 0 | M25: 0 | N25: 9 | O25: 3 | P25: 0 | Q25: 0 | R25: 02 | S25: 00 | T25: 0 | U25: 0 | V25: 0 | W25: 0 | X25: 0 | Y25: 00
B34: Step 3:

Sheet Calcs (hidden)
B2: Category | C2: DSI86_INPUTS and EDID page Inputs | E2: =DSI86_INPUTS!E15 -> LEFTRIGHT MODE ONLY | H2: Color Legend
B3: =DSI86_INPUTS!B3 -> Panel Vendor | C3: =DSI86_INPUTS!C$3 -> InfoVision | E3: =DSI86_INPUTS!E16 -> Right Pixel Start | F3: =DSI86_INPUTS!F$16 -> 1440 | H3: Calculated OUTPUTS
B4: =DSI86_INPUTS!B4 -> Panel Model# | C4: =DSI86_INPUTS!C$4 -> M125NWF4 R0 | E4: =DSI86_INPUTS!E17 -> LEFT HACTIVE | F4: =DSI86_INPUTS!F$17 -> 1439 | H4: INPUTS
B5: =EDID!$B$5 -> Resolution | C5: =EDID!$C$5 -> 2160x1440 | E5: =DSI86_INPUTS!E18 -> RIGHT HACTIVE | F5: =DSI86_INPUTS!F$18 -> 481
B6: =DSI86_INPUTS!B6 -> Hsync (in pixels) | C6: =DSI86_INPUTS!C$6 -> 48 | E6: =DSI86_INPUTS!E19 -> LEFT CROP | F6: =DSI86_INPUTS!F$19 -> 0 | H6: Registers | I6: Binary Value | J6: Hex Values
B7: Hsync (in us) | C7: =ROUNDUP(C6/C$28, 3) &" us" -> 0.173 us | E7: =DSI86_INPUTS!E20 -> RIGHT CROP | F7: =DSI86_INPUTS!F$20 -> 0 | H7: 0x10 | I7: =(IF(DSI86_INPUTS!F10="EvenOdd","0","1")&IF(DSI86_INPUTS!F9="Single","01","00")&IF(DSI86_INPUTS!F6=4,"00",IF(DSI86_INPUTS!F6=3,"01",IF(DSI86_INPUTS!F6=2,"10","11")))&IF(DSI86_INPUTS!F7=4,"00",IF(DSI86_INPUTS!F7=3,"01",IF(DSI86_INPUTS!F7=2,"10","11")))&0) -> 00100110 | J7: =BIN2HEX(I7,2) -> 26
B8: =DSI86_INPUTS!$B$7 -> HSync POLARITY | C8: =DSI86_INPUTS!C$7 -> NEGATIVE | E8: =DSI86_INPUTS!E21 -> HACTIVE with Crop | F8: =DSI86_INPUTS!F$21 -> 1920 | H8: 0x3C | I8: =IF(DSI86_INPUTS!F12="DISABLE","00","10")&IF(DSI86_INPUTS!F13="Horizontal Colors: Stripes","111",IF(DSI86_INPUTS!F13="Horizontal Colors: 3 Color","110",IF(DSI86_INPUTS!F13="Horizontal Colors: 8 Gray Scale","101",IF(DSI86_INPUTS!F13="Horizontal Colors: 8 Color","100",IF(DSI86_INPUTS!F13="Vertical Colors: Stripes","011",IF(DSI86_INPUTS!F13="Vertical Colors: 3 Color","010",IF(DSI86_INPUTS!F13="Vertical Colors: 8 Gray Scale","001",IF(DSI86_INPUTS!F13="Vertical Colors: 8 Color (Default)","000","NAN")))))))) -> 10010 | J8: =BIN2HEX(I8,2) -> 12
B9: HBPorch (in pixels) | C9: =DSI86_INPUTS!C$8 -> 88 | E9: Percent Left | F9: =(F$4+F$6)/F$8 -> 0.7494791667
B10: HBPorch (in us) | C10: =ROUNDUP(C9/C$28, 3) &" us" -> 0.318 us | E10: Percent Right | F10: =(F$5+F$7)/F$8 -> 0.2505208333
B11: HFPorch (in pixels) | C11: =DSI86_INPUTS!C$9 -> 24 | E11: Min DSI A clk rate (MHz) | F11: =IF((C$28*F$14)/((C$33+C$34)*2)<755,(C$28*F$14)/((C$33+C$34)*2),"CLK TO FAST") -> 624.6
B12: HFPorch (in us) | C12: =ROUNDUP(C11/C$28, 3) &" us" -> 0.087 us | E12: Min DSI B clk rate (MHz) | F12: =IF((C$28*F$14)/((C$33+C$34)*2)<755,(C$28*F$14)/((C$33+C$34)*2),"CLK TO FAST") -> 624.6
B13: Hactive (in pixels) | C13: =DSI86_INPUTS!C$10 -> 1920
B14: Hactive (in us) | C14: =ROUNDUP(C13/C$28, 3) &" us" -> 6.917 us | E14: bits/pixel(bpp) | F14: =IF(C37="RGB666", 18, 24) -> 18
B15: Htotal (in pixels) | C15: =SUM(C6:C13) -> 2080 | E15: min DSI A CLK rate(MHz) single based on Panel | F15: =IF((C$28*F$14)/((C$33+C$34)*2)<755,(C$28*F$14)/((C$33+C$34)*2),"CLK TO FAST") -> 624.6
B16: Htotal (in us) | C16: =ROUNDUP(C15/C$28, 3) -> 7.493 | E16: Total # of bits per line | F16: =F14*C15 -> 37440
B17: Vsync (in Lines) | C17: =DSI86_INPUTS!C$11 -> 18 | E17: Min DSI CLK rate for non-burst mode based on panel timing(MHz) | F17: =IF((F$16/C$16)/(2*(C$33+C$34)) < 755, (F$16/C$16)/(2*(C$33+C$34)),"CLK TO FAST") -> 624.5829441
B18: Vsync (in us) | C18: =ROUNDUP(C17*C$16, 3) &" us" -> 134.874 us | E18: 1 Lane at Max DP datarate (Mbps) | F18: =IF(C$32="HBR2",0.8*5400,IF(C$32="HBR",0.8*2700,IF(C$32="RBR",0.8*1620,0))) -> 2160
B19: Vsync Polarity | C19: =DSI86_INPUTS!C$12 -> NEGATIVE | E19: 1 Lane at Mid DP datarate (Mbps) | F19: =IF(C$32="HBR2",0.8*2700,IF(C$32="HBR",0.8*2700,IF(C$32="RBR",0.8*1620,0))) -> 2160
B20: VBPorch (in Lines) | C20: =DSI86_INPUTS!C$13 -> 11 | E20: 1 Lane at Min DP datarate (Mbps) | F20: =0.8 * 1620 -> 1296
B21: VBPorch (in us) | C21: =ROUNDUP(C20*C$16, 3) &" us" -> 82.423 us | E21: # of available DP lanes | F21: =IF(C$30=C$31,C$30,IF(C$30<C$31,C$30,C$31)) -> 4
B22: VFPorch (in Lines) | C22: =DSI86_INPUTS!C$14 -> 3 | E22: Total available DP datarate (Mbps) | F22: =F$18 * F$21 -> 8640
B23: VFPorch (in us) | C23: =ROUNDUP(C22*C$16, 3) &" us" -> 22.479 us | E23: Optimum # of Lanes | F23: =IF(C$29>F$22,"Not Enough BW",IF(F$21<2,1,IF(F$21<4,IF(C$29<F$20,1,IF(C$29<F$19,1,IF(C$29<F$18,1,2))),IF(C$29<F$20,1,IF(C$29<F$19,1,IF(C$29<F$18,1,IF(C$29<F$20*2,2,IF(C$29<F$19*2,2,IF(C$29<F$18*2,2,4))))))))) -> 4
B24: Vactive (in Lines) | C24: =DSI86_INPUTS!C$15 -> 1080 | E24: Optimum Daterate | F24: =IF(C$29 < F$23 * F$20, "RBR", IF(C$29 < F$23 *F$19, "HBR", "HBR2" )) -> RBR
B25: Vactive (us) | C25: =ROUNDUP(C24*C$16, 3) &" us" -> 8092.44 us
B26: Vtotal (in Lines) | C26: =SUM(C17:C24) -> 1112
B27: Vtotal (in us) | C27: =ROUNDUP(C26*C$16, 3) -> 8332.216
B28: Pixel CLK(MHz) - nominal | C28: =DSI86_INPUTS!C$16 -> 277.6
B29: Stream bit Rate (Mbps) | C29: =ROUNDUP(C15 * C26 * (1/C27)*F14, 3) -> 4996.664
B30: # of DP Lanes for DSI86 | C30: =DSI86_INPUTS!F$3 -> 4
B31: # of DP Lanes for DP Panel | C31: =DSI86_INPUTS!F$4 -> 4
B32: Max DP datarate for DP Panel | C32: =DSI86_INPUTS!F$5 -> HBR
B33: =DSI86_INPUTS!$E$6 -> # of DSI A Lanes | C33: =DSI86_INPUTS!F$6 -> 4
B34: =DSI86_INPUTS!$E$7 -> # of DSI B Lanes | C34: =DSI86_INPUTS!F$7 -> 0
B35: =DSI86_INPUTS!$E$9 -> DSI Channel Mode | C35: =DSI86_INPUTS!F$9 -> Single
B36: =DSI86_INPUTS!$E$10 -> Even/Odd or Left/Right | C36: =DSI86_INPUTS!F$10 -> EvenOdd
B37: =DSI86_INPUTS!$E$8 -> DSI Video mode | C37: =DSI86_INPUTS!F$8 -> RGB666

Sheet Script_ASSR
B2: This code is meant for an Aardvark USB to I2C to program the SN65DSI86
C3: Addr | D3: Data
B4: <aardvark>
B5: <configure i2c="1" spi="1" gpio="0" tpower="1" pullups="0"/>
B6: <i2c_bitrate khz="100"/>
B8: ======REFCLK Frequency ====== | K8: =TRIM(E6) -> 
B9: <i2c_write addr="0x2D" count="1" radix="16"> | C9: 0A | D9: =CSR!$C$8 -> 2 | E9: </i2c_write>/>
B11: ======DSI Mode ======
B12: <i2c_write addr="0x2D" count="1" radix="16"> | C12: 10 | D12: =Calcs!J7 -> 26 | E12: </i2c_write>/>
B14: ======DSIA Clock ======
B15: <i2c_write addr="0x2D" count="1" radix="16"> | C15: 12 | D15: =CSR!C$16 -> 7C | E15: </i2c_write>/>
B17: ======DSIB Clock ======
B18: <i2c_write addr="0x2D" count="1" radix="16"> | C18: 13 | D18: =CSR!C$17 -> 7C | E18: </i2c_write>/>
B20: ======DP Datarate ======
B21: <i2c_write addr="0x2D" count="1" radix="16"> | C21: 94 | D21: =CSR!$C$41 -> 20 | E21: </i2c_write>/>
B23: ======Enable PLL ======
B24: <i2c_write addr="0x2D" count="1" radix="16"> | C24: 0D | D24: 1 | E24: </i2c_write> <sleep ms="10"/>
B26: ======Enable ASSR in Panel ======
B27: <i2c_write addr="0x2D" count="1" radix="16"> | C27: 64 | D27: 1 | E27: </i2c_write>/>
B28: <i2c_write addr="0x2D" count="5" radix="16"> | C28: 74 | D28: 0 | E28: 1 | F28: 0A | G28: 1 | H28: 81 | I28: </i2c_write> <sleep ms="10"/>
B30: ======Enable enhanced frame and ASSR in DSI86 ======
B31: <i2c_write addr="0x2D" count="1" radix="16"> | C31: 5A | D31: 5 | E31: </i2c_write>/>
B33: ======Number of DP lanes ======
B34: <i2c_write addr="0x2D" count="1" radix="16"> | C34: 93 | D34: =CSR!$C$40 -> 30 | E34: </i2c_write>/>
B36: ======Start Semi-Auto Link Training ======
B37: <i2c_write addr="0x2D" count="1" radix="16"> | C37: 96 | D37: 0A | E37: </i2c_write> <sleep ms="20"/>
B39: ======CHA Active Line Length ======
B40: <i2c_write addr="0x2D" count="2" radix="16"> | C40: 20 | D40: =CSR!$C$20 -> 80 | E40: =CSR!$C$21 -> 07 | F40: </i2c_write>/>
B42: ======CHB Active Line Length ======
B43: <i2c_write addr="0x2D" count="2" radix="16"> | C43: 22 | D43: =CSR!$C$22 -> 0 | E43: =CSR!$C$23 -> 0 | F43: </i2c_write>/>
B45: ======Vertical Active Size ======
B46: <i2c_write addr="0x2D" count="2" radix="16"> | C46: 24 | D46: =CSR!$C$24 -> 38 | E46: =CSR!$C$25 -> 04 | F46: </i2c_write>/>
B48: ======Horizontal Pulse Width ======
B49: <i2c_write addr="0x2D" count="2" radix="16"> | C49: 2C | D49: =CSR!$C$26 -> 30 | E49: =CSR!$C$27 -> 00 | F49: </i2c_write>/>
B51: ======Vertical Pulse Width ======
B52: <i2c_write addr="0x2D" count="2" radix="16"> | C52: 30 | D52: =CSR!$C$29 -> 12 | E52: =CSR!$C$30 -> 00 | F52: </i2c_write>/>
B54: ======HBP ======
B55: <i2c_write addr="0x2D" count="1" radix="16"> | C55: 34 | D55: =CSR!$C$32 -> 58 | E55: </i2c_write>/>
B57: ======VBP ======
B58: <i2c_write addr="0x2D" count="1" radix="16"> | C58: 36 | D58: =CSR!$C$33 -> 0B | E58: </i2c_write>/>
B60: ===== HFP ======
B61: <i2c_write addr="0x2D" count="1" radix="16"> | C61: 38 | D61: =CSR!$C$34 -> 18 | E61: </i2c_write>/>
B63: ===== VFP ======
B64: <i2c_write addr="0x2D" count="1" radix="16"> | C64: 3A | D64: =CSR!$C$35 -> 03 | E64: </i2c_write>/>
B66: ===== DP-18BPP Disable ======
B67: <i2c_write addr="0x2D" count="1" radix="16"> | C67: 5B | D67: 0 | E67: </i2c_write>/>
B69: ===== Color Bar Enable ======
B70: <i2c_write addr="0x2D" count="1" radix="16"> | C70: 3C | D70: =Calcs!J8 -> 12 | E70: </i2c_write>/>
B72: ===== Enhanced Frame, ASSR, and Vstream Enable ======
B73: <i2c_write addr="0x2D" count="1" radix="16"> | C73: 5A | D73: 0D | E73: </i2c_write>/>
B75: </aardvark>

Sheet Qualcomm_ASSR
C2: Register | D2: Data
B3: "<DSIInitSequence>"
B4: "23 | C4: =Script_ASSR!C9 -> 0A | D4: =Script_ASSR!D9 -> 2 | E4: \n"
B5: "23 | C5: =Script_ASSR!C12 -> 10 | D5: =Script_ASSR!D12 -> 26 | E5: \n"
B6: "23 | C6: =Script_ASSR!C15 -> 12 | D6: =Script_ASSR!D15 -> 7C | E6: \n"
B7: "23 | C7: =Script_ASSR!C18 -> 13 | D7: =Script_ASSR!D18 -> 7C | E7: \n"
B8: "23 | C8: =Script_ASSR!C21 -> 94 | D8: =Script_ASSR!D21 -> 20 | E8: \n"
B9: "23 | C9: =Script_ASSR!C24 -> 0D | D9: =Script_ASSR!D24 -> 1 | E9: \n"
B10: "23 | C10: =Script_ASSR!C27 -> 64 | D10: =Script_ASSR!D27 -> 1 | E10: \n"
B11: "23 | C11: 74 | D11: 0 | E11: \n"
B12: "23 | C12: 75 | D12: 1 | E12: \n"
B13: "23 | C13: 76 | D13: 0A | E13: \n"
B14: "23 | C14: 77 | D14: 1 | E14: \n"
B15: "23 | C15: 78 | D15: 81 | E15: \n"
B16: "FF | C16: 0A | D16: \n"
B17: "23 | C17: =Script_ASSR!C31 -> 5A | D17: =Script_ASSR!D31 -> 5 | E17: \n"
B18: "23 | C18: =Script_ASSR!C34 -> 93 | D18: =Script_ASSR!D34 -> 30 | E18: \n"
B19: "23 | C19: =Script_ASSR!C37 -> 96 | D19: =Script_ASSR!D37 -> 0A | E19: \n"
B20: "FF | C20: 14 | D20: \n"
B21: "23 | C21: =Script_ASSR!C40 -> 20 | D21: =Script_ASSR!D40 -> 80 | E21: \n"
B22: "23 | C22: =Script_ASSR!C40 + 1 -> 21 | D22: =Script_ASSR!E40 -> 07 | E22: \n"
B23: "23 | C23: =Script_ASSR!C43 -> 22 | D23: =Script_ASSR!D43 -> 0 | E23: \n"
B24: "23 | C24: =Script_ASSR!C43 + 1 -> 23 | D24: =Script_ASSR!E43 -> 0 | E24: \n"
B25: "23 | C25: =Script_ASSR!C46 -> 24 | D25: =Script_ASSR!D46 -> 38 | E25: \n"
B26: "23 | C26: =Script_ASSR!C46 + 1 -> 25 | D26: =Script_ASSR!E46 -> 04 | E26: \n"
B27: "23 | C27: =Script_ASSR!C49 -> 2C | D27: =Script_ASSR!D49 -> 30 | E27: \n"
B28: "23 | C28: 2D | D28: =Script_ASSR!E49 -> 00 | E28: \n"
B29: "23 | C29: =Script_ASSR!C52 -> 30 | D29: =Script_ASSR!D52 -> 12 | E29: \n"
B30: "23 | C30: =Script_ASSR!C52 +1 -> 31 | D30: =Script_ASSR!E52 -> 00 | E30: \n"
B31: "23 | C31: =Script_ASSR!C55 -> 34 | D31: =Script_ASSR!D55 -> 58 | E31: \n"
B32: "23 | C32: =Script_ASSR!C58 -> 36 | D32: =Script_ASSR!D58 -> 0B | E32: \n"
B33: "23 | C33: =Script_ASSR!C61 -> 38 | D33: =Script_ASSR!D61 -> 18 | E33: \n"
B34: "23 | C34: =Script_ASSR!C64 -> 3A | D34: =Script_ASSR!D64 -> 03 | E34: \n"
B35: "23 | C35: =Script_ASSR!C67 -> 5B | D35: =Script_ASSR!D67 -> 0 | E35: \n"
B36: "23 | C36: =Script_ASSR!C70 -> 3C | D36: =Script_ASSR!D70 -> 12 | E36: \n"
B37: "23 | C37: =Script_ASSR!C73 -> 5A | D37: =Script_ASSR!D73 -> 0D | E37: \n"
B38: "</DSIInitSequence>"

Sheet Script_NoASSR
B2: This code is meant for an Aardvark USB to I2C to program the SN65DSI86
C3: Addr | D3: Data
B4: <aardvark>
B5: <configure i2c="1" spi="1" gpio="0" tpower="1" pullups="0"/>
B6: <i2c_bitrate khz="100"/>
B8: ======ASSR RW control ======
B9: <i2c_write addr="0x2D" count="1" radix="16"> | C9: FF | D9: 7 | E9: </i2c_write>/>
B10: <i2c_write addr="0x2D" count="1" radix="16"> | C10: 16 | D10: 1 | E10: </i2c_write>/>
B11: <i2c_write addr="0x2D" count="1" radix="16"> | C11: FF | D11: 0 | E11: </i2c_write>/>
B13: ======REFCLK Frequency ======
B14: <i2c_write addr="0x2D" count="1" radix="16"> | C14: 0A | D14: =CSR!$C$8 -> 2 | E14: </i2c_write>/>
B16: ======DSI Mode ======
B17: <i2c_write addr="0x2D" count="1" radix="16"> | C17: 10 | D17: =Calcs!J7 -> 26 | E17: </i2c_write>/>
B19: ======DSIA Clock ======
B20: <i2c_write addr="0x2D" count="1" radix="16"> | C20: 12 | D20: =CSR!C$16 -> 7C | E20: </i2c_write>/>
B22: ======DSIB Clock ======
B23: <i2c_write addr="0x2D" count="1" radix="16"> | C23: 13 | D23: =CSR!C$17 -> 7C | E23: </i2c_write>/>
B25: ======DP Datarate ======
B26: <i2c_write addr="0x2D" count="1" radix="16"> | C26: 94 | D26: =CSR!$C$41 -> 20 | E26: </i2c_write>/>
B28: ======Enable PLL ======
B29: <i2c_write addr="0x2D" count="1" radix="16"> | C29: 0D | D29: 1 | E29: </i2c_write> <sleep ms="10"/>
B31: ======Enable enhanced frame in DSI86 ======
B32: <i2c_write addr="0x2D" count="1" radix="16"> | C32: 5A | D32: 4 | E32: </i2c_write>/>
B34: ======Number of DP lanes ======
B35: <i2c_write addr="0x2D" count="1" radix="16"> | C35: 93 | D35: =CSR!$C$40 -> 30 | E35: </i2c_write>/>
B37: ======Start Semi-Auto Link Training ======
B38: <i2c_write addr="0x2D" count="1" radix="16"> | C38: 96 | D38: 0A | E38: </i2c_write> <sleep ms="20"/>
B40: ======CHA Active Line Length ======
B41: <i2c_write addr="0x2D" count="2" radix="16"> | C41: 20 | D41: =CSR!$C$20 -> 80 | E41: =CSR!$C$21 -> 07 | F41: </i2c_write>/>
B43: ======CHB Active Line Length ======
B44: <i2c_write addr="0x2D" count="2" radix="16"> | C44: 22 | D44: =CSR!$C$22 -> 0 | E44: =CSR!$C$23 -> 0 | F44: </i2c_write>/>
B46: ======Vertical Active Size ======
B47: <i2c_write addr="0x2D" count="2" radix="16"> | C47: 24 | D47: =CSR!$C$24 -> 38 | E47: =CSR!$C$25 -> 04 | F47: </i2c_write>/>
B49: ======Horizontal Pulse Width ======
B50: <i2c_write addr="0x2D" count="2" radix="16"> | C50: 2C | D50: =CSR!$C$26 -> 30 | E50: =CSR!$C$27 -> 00 | F50: </i2c_write>/>
B52: ======Vertical Pulse Width ======
B53: <i2c_write addr="0x2D" count="2" radix="16"> | C53: 30 | D53: =CSR!$C$29 -> 12 | E53: =CSR!$C$30 -> 00 | F53: </i2c_write>/>
B55: ======HBP ======
B56: <i2c_write addr="0x2D" count="1" radix="16"> | C56: 34 | D56: =CSR!$C$32 -> 58 | E56: </i2c_write>/>
B58: ======VBP ======
B59: <i2c_write addr="0x2D" count="1" radix="16"> | C59: 36 | D59: =CSR!$C$33 -> 0B | E59: </i2c_write>/>
B61: ===== HFP ======
B62: <i2c_write addr="0x2D" count="1" radix="16"> | C62: 38 | D62: =CSR!$C$34 -> 18 | E62: </i2c_write>/>
B64: ===== VFP ======
B65: <i2c_write addr="0x2D" count="1" radix="16"> | C65: 3A | D65: =CSR!$C$35 -> 03 | E65: </i2c_write>/>
B67: ===== DP-18BPP Disable ======
B68: <i2c_write addr="0x2D" count="1" radix="16"> | C68: 5B | D68: 0 | E68: </i2c_write>/>
B70: ===== Color Bar Enable ======
B71: <i2c_write addr="0x2D" count="1" radix="16"> | C71: 3C | D71: =Calcs!J8 -> 12 | E71: </i2c_write>/>
B73: ===== Enhanced Frame, and Vstream Enable ======
B74: <i2c_write addr="0x2D" count="1" radix="16"> | C74: 5A | D74: 0C | E74: </i2c_write>/>
B76: </aardvark>

Sheet Qualcomm_noASSR
F2: Register | G2: Data
E3: "<DSIInitSequence>"
E4: "23 | F4: =Script_NoASSR!C9 -> FF | G4: =Script_NoASSR!D9 -> 7 | H4: \n"
E5: "23 | F5: =Script_NoASSR!C10 -> 16 | G5: =Script_NoASSR!D10 -> 1 | H5: \n"
E6: "23 | F6: =Script_NoASSR!C11 -> FF | G6: =Script_NoASSR!D11 -> 0 | H6: \n"
E7: "23 | F7: =Script_NoASSR!C14 -> 0A | G7: =Script_NoASSR!D14 -> 2 | H7: \n"
E8: "23 | F8: =Script_NoASSR!C17 -> 10 | G8: =Script_NoASSR!D17 -> 26 | H8: \n"
E9: "23 | F9: =Script_NoASSR!C20 -> 12 | G9: =Script_NoASSR!D20 -> 7C | H9: \n"
E10: "23 | F10: =Script_NoASSR!C23 -> 13 | G10: =Script_NoASSR!D23 -> 7C | H10: \n"
E11: "23 | F11: =Script_NoASSR!C26 -> 94 | G11: =Script_NoASSR!D26 -> 20 | H11: \n"
E12: "23 | F12: =Script_NoASSR!C29 -> 0D | G12: =Script_NoASSR!D29 -> 1 | H12: \n"
E13: "FF | F13: 0A | G13: \n"
E14: "23 | F14: =Script_NoASSR!C32 -> 5A | G14: =Script_NoASSR!D32 -> 4 | H14: \n"
E15: "23 | F15: =Script_NoASSR!C35 -> 93 | G15: =Script_NoASSR!D35 -> 30 | H15: \n"
E16: "23 | F16: =Script_NoASSR!C38 -> 96 | G16: =Script_NoASSR!D38 -> 0A | H16: \n"
E17: "FF | F17: 14 | G17: \n"
E18: "23 | F18: =Script_NoASSR!C41 -> 20 | G18: =Script_NoASSR!D41 -> 80 | H18: \n"
E19: "23 | F19: =Script_NoASSR!C41 + 1 -> 21 | G19: =Script_NoASSR!$E$41 -> 07 | H19: \n"
E20: "23 | F20: =Script_NoASSR!C44 -> 22 | G20: =Script_NoASSR!D44 -> 0 | H20: \n"
E21: "23 | F21: =Script_NoASSR!C44 + 1 -> 23 | G21: =Script_NoASSR!$E$44 -> 0 | H21: \n"
E22: "23 | F22: =Script_NoASSR!C47 -> 24 | G22: =Script_NoASSR!D47 -> 38 | H22: \n"
E23: "23 | F23: =Script_NoASSR!C47 + 1 -> 25 | G23: =Script_NoASSR!$E$47 -> 04 | H23: \n"
E24: "23 | F24: =Script_NoASSR!C50 -> 2C | G24: =Script_NoASSR!D50 -> 30 | H24: \n"
E25: "23 | F25: 2D | G25: =Script_NoASSR!$E$50 -> 00 | H25: \n"
E26: "23 | F26: =Script_NoASSR!C53 -> 30 | G26: =Script_NoASSR!D53 -> 12 | H26: \n"
E27: "23 | F27: =Script_NoASSR!C53 + 1 -> 31 | G27: =Script_NoASSR!$E$53 -> 00 | H27: \n"
E28: "23 | F28: =Script_NoASSR!C56 -> 34 | G28: =Script_NoASSR!D56 -> 58 | H28: \n"
E29: "23 | F29: =Script_NoASSR!C59 -> 36 | G29: =Script_NoASSR!D59 -> 0B | H29: \n"
E30: "23 | F30: =Script_NoASSR!C62 -> 38 | G30: =Script_NoASSR!D62 -> 18 | H30: \n"
E31: "23 | F31: =Script_NoASSR!C65 -> 3A | G31: =Script_NoASSR!D65 -> 03 | H31: \n"
E32: "23 | F32: =Script_NoASSR!C68 -> 5B | G32: =Script_NoASSR!D68 -> 0 | H32: \n"
E33: "23 | F33: =Script_NoASSR!C71 -> 3C | G33: =Script_NoASSR!D71 -> 12 | H33: \n"
E34: "23 | F34: =Script_NoASSR!C74 -> 5A | G34: =Script_NoASSR!D74 -> 0C | H34: \n"
E35: "</DSIInitSequence>"

Sheet CSR (hidden)
B3: =DSI86_INPUTS!B$3 -> Panel Vendor | C3: =DSI86_INPUTS!C$3 -> InfoVision | E3: Color Legend
B4: =DSI86_INPUTS!B$4 -> Panel Model# | C4: =DSI86_INPUTS!C$4 -> M125NWF4 R0 | E4: Calculated OUTPUTS
B5: =EDID!$B$5 -> Resolution | C5: =EDID!C$5 -> 2160x1440 | E5: INPUTS
B7: RESET AND CLOCK REGISTERS | C7: HEX
B8: REFCLK_FREQ | C8: =IF(DSI86_INPUTS!F$11 = 12,0,IF(DSI86_INPUTS!F$11 = 38.4,8,IF(DSI86_INPUTS!F$11=26,4,IF(DSI86_INPUTS!F$11 = 27,6,2)))) -> 2
B10: DSI REGISTERS
B11: LEFT_RIGHT_PIXELS | C11: =IF(Calcs!C$36="EvenOdd",0,1) -> 0
B12: DSI_CHANNEL_MODE | C12: =IF(Calcs!C$35="Single",1,0) -> 1
B13: CHA_DSI_LANES | C13: =IF(Calcs!C$33=4,0,IF(Calcs!C$33=3,1,IF(Calcs!C$33=2,2,3))) -> 0
B14: CHB_DSI_LANES | C14: =IF(Calcs!C$34=4,0,IF(Calcs!C$34=3,1,IF(Calcs!C$34=2,2,3))) -> 3
B15: DSI_Mode_10h
B16: CHA_DSI_CLK_RANGE | C16: =DEC2HEX(ROUNDDOWN(Calcs!F$15/5,0),2) -> 7C
B17: CHB_DSI_CLK_RANGE | C17: =C$16 -> 7C
B19: VIDEO REGISTERS
B20: CHA_ACTIVE_LINE_LENGTH_LOW | C20: =IF(AND(C$12=1,C$11=0),RIGHT(DEC2HEX(Calcs!C$13,4),2),RIGHT(DEC2HEX(Calcs!C$13/2,4),2)) -> 80
B21: CHA_ACTIVE_LINE_LENGTH_HIGH | C21: =IF(AND(C$12=1,C$11=0),LEFT(DEC2HEX(Calcs!C$13,4),2),LEFT(DEC2HEX(Calcs!C$13/2,4),2)) -> 07
B22: CHB_ACTIVE_LINE_LENGTH_LOW | C22: =IF(AND(C$12=1,C$11=0),0,RIGHT(DEC2HEX(Calcs!C$13/2,4),2)) -> 0
B23: CHB_ACTIVE_LINE_LENGTH_HIGH | C23: =IF(AND(C$12=1,C$11=0),0,LEFT(DEC2HEX(Calcs!C$13/2,4),2)) -> 0
B24: CHA_VERTICAL_DISPLAY_SIZE_LOW | C24: =RIGHT(DEC2HEX(Calcs!C$24,4),2) -> 38
B25: CHA_VERTICAL_DISPLAY_SIZE_HIGH | C25: =LEFT(DEC2HEX(Calcs!C$24,4),2) -> 04
B26: CHA_HSYNC_PULSE_WIDTH_LOW | C26: =RIGHT(DEC2HEX(Calcs!C$6,4),2) -> 30
B27: CHA_HSYNC_PULSE_WIDTH_HIGH | C27: =LEFT(DEC2HEX(Calcs!C$6,4),2) -> 00
B28: CHA_HSYNC_POLARITY | C28: =IF(Calcs!C$8 = "POSITIVE",0,1) -> 1
B29: CHA_VSYNC_PULSE_WIDTH_LOW | C29: =RIGHT(DEC2HEX(Calcs!C$17,4),2) -> 12
B30: CHA_VSYNC_PULSE_WIDTH_HIGH | C30: =LEFT(DEC2HEX(Calcs!C$17,4),2) -> 00
B31: CHA_VSYNC_POLARITY | C31: =IF(Calcs!C$19="POSITIVE",0,1) -> 1
B32: CHA_HORIZONTAL_BACK_PORCH | C32: =DEC2HEX(Calcs!C$9,2) -> 58
B33: CHA_VERTICAL_BACK_PORCH | C33: =DEC2HEX(Calcs!C$20,2) -> 0B
B34: CHA_HORIZONTAL_FRONT_PORCH | C34: =DEC2HEX(Calcs!C$11,2) -> 18
B35: CHA_VERTICAL_FRONT_PORCH | C35: =DEC2HEX(Calcs!C$22,2) -> 03
B36: RIGHT_CROP
B37: LEFT_CROP
B39: Link Training Registers
B40: DP_NUM_LANES | C40: =IF(Calcs!F$23=4,30,IF(Calcs!F$23=2,20,10)) -> 30
B41: DP_DATARATE | C41: =IF(Calcs!F$24="HBR2","E0",IF(Calcs!F$24="HBR",80,IF(Calcs!F$24="RBR",20,Calcs!F$24))) -> 20

Sheet EDID (hidden)
B2: Category | C2: Calc. Outputs | D2: Manual Inputs | F2: EDID registers | G2: 0 | H2: 1 | I2: 2 | J2: 3 | K2: 4 | L2: 5 | M2: 6 | N2: 7 | O2: 8 | P2: 9 | Q2: A | R2: B | S2: C | T2: D | U2: E | V2: F
B3: Panel Vendor | C3: =Main_Inputs_Page!C7 -> InfoVision | F3: 0 | G3: =Main_Inputs_Page!I7 -> 0 | H3: =Main_Inputs_Page!J7 -> FF | I3: =Main_Inputs_Page!K7 -> FF | J3: =Main_Inputs_Page!L7 -> FF | K3: =Main_Inputs_Page!M7 -> FF | L3: =Main_Inputs_Page!N7 -> FF | M3: =Main_Inputs_Page!O7 -> FF | N3: =Main_Inputs_Page!P7 -> 0 | O3: =Main_Inputs_Page!Q7 -> 26 | P3: =Main_Inputs_Page!R7 -> CF | Q3: =Main_Inputs_Page!S7 -> 14 | R3: =Main_Inputs_Page!T7 -> 34 | S3: =Main_Inputs_Page!U7 -> 0 | T3: =Main_Inputs_Page!V7 -> 0 | U3: =Main_Inputs_Page!W7 -> 0 | V3: =Main_Inputs_Page!X7 -> 0
B4: Panel Model# | C4: =Main_Inputs_Page!C8 -> M125NWF4 R0 | F4: 10 | G4: =Main_Inputs_Page!I8 -> 0 | H4: =Main_Inputs_Page!J8 -> 1C | I4: =Main_Inputs_Page!K8 -> 1 | J4: =Main_Inputs_Page!L8 -> 4 | K4: =Main_Inputs_Page!M8 -> A5 | L4: =Main_Inputs_Page!N8 -> 1D | M4: =Main_Inputs_Page!O8 -> 11 | N4: =Main_Inputs_Page!P8 -> 78 | O4: =Main_Inputs_Page!Q8 -> 0A | P4: =Main_Inputs_Page!R8 -> 1D | Q4: =Main_Inputs_Page!S8 -> 30 | R4: =Main_Inputs_Page!T8 -> A7 | S4: =Main_Inputs_Page!U8 -> 50 | T4: =Main_Inputs_Page!V8 -> 47 | U4: =Main_Inputs_Page!W8 -> 97 | V4: =Main_Inputs_Page!X8 -> 27
B5: Resolution | C5: =Main_Inputs_Page!C9 -> 2160x1440 | F5: 20 | G5: =Main_Inputs_Page!I9 -> 13 | H5: =Main_Inputs_Page!J9 -> 50 | I5: =Main_Inputs_Page!K9 -> 54 | J5: =Main_Inputs_Page!L9 -> 0 | K5: =Main_Inputs_Page!M9 -> 0 | L5: =Main_Inputs_Page!N9 -> 0 | M5: =Main_Inputs_Page!O9 -> 1 | N5: =Main_Inputs_Page!P9 -> 1 | O5: =Main_Inputs_Page!Q9 -> 1 | P5: =Main_Inputs_Page!R9 -> 1 | Q5: =Main_Inputs_Page!S9 -> 1 | R5: =Main_Inputs_Page!T9 -> 1 | S5: =Main_Inputs_Page!U9 -> 1 | T5: =Main_Inputs_Page!V9 -> 1 | U5: =Main_Inputs_Page!W9 -> 1 | V5: =Main_Inputs_Page!X9 -> 1
B6: Pixel Clock | C6: =IF(Main_Inputs_Page!$C$22="Yes",D6,Raw_EDID_Cals!Z3) -> 277.6 | D6: =Main_Inputs_Page!C10 -> 206.02 | F6: 30 | G6: =Main_Inputs_Page!I10 -> 1 | H6: =Main_Inputs_Page!J10 -> 1 | I6: =Main_Inputs_Page!K10 -> 1 | J6: =Main_Inputs_Page!L10 -> 1 | K6: =Main_Inputs_Page!M10 -> 1 | L6: =Main_Inputs_Page!N10 -> 1 | M6: =Main_Inputs_Page!O10 -> 70 | N6: =Main_Inputs_Page!P10 -> 6C | O6: =Main_Inputs_Page!Q10 -> 80 | P6: =Main_Inputs_Page!R10 -> A0 | Q6: =Main_Inputs_Page!S10 -> 70 | R6: =Main_Inputs_Page!T10 -> 38 | S6: =Main_Inputs_Page!U10 -> 20 | T6: =Main_Inputs_Page!V10 -> 40 | U6: =Main_Inputs_Page!W10 -> 18 | V6: =Main_Inputs_Page!X10 -> 30
B7: Horizontal Active (pixels) | C7: =IF(Main_Inputs_Page!$C$22="Yes",D7,Raw_EDID_Cals!Z4) -> 1920 | D7: =Main_Inputs_Page!C11 -> 2160 | F7: 40 | G7: =Main_Inputs_Page!I11 -> 3C | H7: =Main_Inputs_Page!J11 -> 0 | I7: =Main_Inputs_Page!K11 -> 26 | J7: =Main_Inputs_Page!L11 -> A5 | K7: =Main_Inputs_Page!M11 -> 10 | L7: =Main_Inputs_Page!N11 -> 0 | M7: =Main_Inputs_Page!O11 -> 0 | N7: =Main_Inputs_Page!P11 -> 19 | O7: =Main_Inputs_Page!Q11 -> 0 | P7: =Main_Inputs_Page!R11 -> 0 | Q7: =Main_Inputs_Page!S11 -> 0 | R7: =Main_Inputs_Page!T11 -> FE | S7: =Main_Inputs_Page!U11 -> 0 | T7: =Main_Inputs_Page!V11 -> 4D | U7: =Main_Inputs_Page!W11 -> 31 | V7: =Main_Inputs_Page!X11 -> 33
B8: Horizontal Blanking (pixels) | C8: =IF(Main_Inputs_Page!$C$22="Yes",D8,Raw_EDID_Cals!Z5) -> 160 | D8: =Main_Inputs_Page!C12 -> 160 | F8: 50 | G8: =Main_Inputs_Page!I12 -> 33 | H8: =Main_Inputs_Page!J12 -> 4E | I8: =Main_Inputs_Page!K12 -> 56 | J8: =Main_Inputs_Page!L12 -> 46 | K8: =Main_Inputs_Page!M12 -> 33 | L8: =Main_Inputs_Page!N12 -> 20 | M8: =Main_Inputs_Page!O12 -> 52 | N8: =Main_Inputs_Page!P12 -> 32 | O8: =Main_Inputs_Page!Q12 -> 20 | P8: =Main_Inputs_Page!R12 -> 0A | Q8: =Main_Inputs_Page!S12 -> 0 | R8: =Main_Inputs_Page!T12 -> 0 | S8: =Main_Inputs_Page!U12 -> 0 | T8: =Main_Inputs_Page!V12 -> 3 | U8: =Main_Inputs_Page!W12 -> 0 | V8: =Main_Inputs_Page!X12 -> 4
B9: Vertical Active (lines) | C9: =IF(Main_Inputs_Page!$C$22="Yes",D9,Raw_EDID_Cals!Z6) -> 1080 | D9: =Main_Inputs_Page!C13 -> 1440 | F9: 60 | G9: =Main_Inputs_Page!I13 -> 36 | H9: =Main_Inputs_Page!J13 -> FF | I9: =Main_Inputs_Page!K13 -> 5 | J9: =Main_Inputs_Page!L13 -> 3C | K9: =Main_Inputs_Page!M13 -> 8D | L9: =Main_Inputs_Page!N13 -> 25 | M9: =Main_Inputs_Page!O13 -> 13 | N9: =Main_Inputs_Page!P13 -> 31 | O9: =Main_Inputs_Page!Q13 -> 8D | P9: =Main_Inputs_Page!R13 -> 0 | Q9: =Main_Inputs_Page!S13 -> 0 | R9: =Main_Inputs_Page!T13 -> 0 | S9: =Main_Inputs_Page!U13 -> 0 | T9: =Main_Inputs_Page!V13 -> 0 | U9: =Main_Inputs_Page!W13 -> 0 | V9: =Main_Inputs_Page!X13 -> 3
B10: Vertical Blanking (lines) | C10: =IF(Main_Inputs_Page!$C$22="Yes",D10,Raw_EDID_Cals!Z7) -> 32 | D10: =Main_Inputs_Page!C14 -> 40 | F10: 70 | G10: =Main_Inputs_Page!I14 -> 0 | H10: =Main_Inputs_Page!J14 -> 6 | I10: =Main_Inputs_Page!K14 -> 18 | J10: =Main_Inputs_Page!L14 -> FF | K10: =Main_Inputs_Page!M14 -> 0F | L10: =Main_Inputs_Page!N14 -> 3C | M10: =Main_Inputs_Page!O14 -> 3B | N10: =Main_Inputs_Page!P14 -> 24 | O10: =Main_Inputs_Page!Q14 -> 8 | P10: =Main_Inputs_Page!R14 -> 31 | Q10: =Main_Inputs_Page!S14 -> 3B | R10: =Main_Inputs_Page!T14 -> 1 | S10: =Main_Inputs_Page!U14 -> 1 | T10: =Main_Inputs_Page!V14 -> 0 | U10: =Main_Inputs_Page!W14 -> 0 | V10: =Main_Inputs_Page!X14 -> BA
B11: Horizontal Sync Offset or FrontPorch (pixels) | C11: =IF(Main_Inputs_Page!$C$22="Yes",D11,Raw_EDID_Cals!Z8) -> 24 | D11: =Main_Inputs_Page!C15 -> 48
B12: Horizontal Sync Pulse Width (pixels) | C12: =IF(Main_Inputs_Page!$C$22="Yes",D12,Raw_EDID_Cals!Z9) -> 48 | D12: =Main_Inputs_Page!C16 -> 32 | H12: Please use the EDID_Formatting_Space to format the EDID and copy and paste the data only into the table.
B13: Vertical Sync Offset or FrontPorch (lines) | C13: =IF(Main_Inputs_Page!$C$22="Yes",D13,Raw_EDID_Cals!Z10) -> 3 | D13: =Main_Inputs_Page!C17 -> 3
B14: Vertical Sync Pulse Width (lines) | C14: =IF(Main_Inputs_Page!$C$22="Yes",D14,Raw_EDID_Cals!Z11) -> 18 | D14: =Main_Inputs_Page!C18 -> 10
B15: Hsync Polarity | C15: =IF(Main_Inputs_Page!$C$22="Yes",D15,Raw_EDID_Cals!AA16) -> NEGATIVE | D15: =Main_Inputs_Page!C19 -> NEGATIVE | F15: Color Legend
B16: Vsync Polarity | C16: =IF(Main_Inputs_Page!$C$22="Yes",D16,Raw_EDID_Cals!AA17) -> NEGATIVE | D16: =Main_Inputs_Page!C20 -> NEGATIVE | F16: Calculated OUTPUTS
B17: HPW | C17: =C$12 -> 48 | F17: INPUTS
B18: HBP | C18: =C$8 - C$11 - C$12 -> 88
B19: HFP | C19: =C$11 -> 24
B20: Hactive | C20: =C$7 -> 1920
B21: VPW | C21: =C$14 -> 18
B22: VBP | C22: =C$10 - C$13 - C$14 -> 11
B23: VFP | C23: =C$13 -> 3
B24: Vactive | C24: =C$9 -> 1080

Sheet Raw_EDID_Cals (hidden)
C2: EDID registers | D2: 0 | E2: 1 | F2: 2 | G2: 3 | H2: 4 | I2: 5 | J2: 6 | K2: 7 | L2: 8 | M2: 9 | N2: A | O2: B | P2: C | Q2: D | R2: E | S2: F | U2: Byte # | W2: Data | X2: Data | Y2: Raw decimal values | Z2: Values for script | AA2: Values | AC2: Byte 17 Decode Table
C3: 0 | D3: =SUBSTITUTE(EDID!G3," ","") -> 0 | E3: =SUBSTITUTE(EDID!H3," ","") -> FF | F3: =SUBSTITUTE(EDID!I3," ","") -> FF | G3: =SUBSTITUTE(EDID!J3," ","") -> FF | H3: =SUBSTITUTE(EDID!K3," ","") -> FF | I3: =SUBSTITUTE(EDID!L3," ","") -> FF | J3: =SUBSTITUTE(EDID!M3," ","") -> FF | K3: =SUBSTITUTE(EDID!N3," ","") -> 0 | L3: =SUBSTITUTE(EDID!O3," ","") -> 26 | M3: =SUBSTITUTE(EDID!P3," ","") -> CF | N3: =SUBSTITUTE(EDID!Q3," ","") -> 14 | O3: =SUBSTITUTE(EDID!R3," ","") -> 34 | P3: =SUBSTITUTE(EDID!S3," ","") -> 0 | Q3: =SUBSTITUTE(EDID!T3," ","") -> 0 | R3: =SUBSTITUTE(EDID!U3," ","") -> 0 | S3: =SUBSTITUTE(EDID!V3," ","") -> 0 | U3: 0,1 | V3: Pixel Clock | W3: =J6 -> 70 | X3: =K6 -> 6C | Y3: =HEX2DEC(W3)+HEX2DEC(X3)*256 -> 27760 | Z3: =Y3/100 -> 277.6 | AA3: =TEXT(Y3/100,"0.00")&" Mhz" -> 277.60 Mhz | AC3: =DEC2HEX(BITWISE_AND(HEX2DEC(X16),BIN2DEC(10000000)),2) -> 00 | AD3: =DEC2HEX(BITWISE_AND(HEX2DEC(X16),BIN2DEC(1100001)),2) -> 01 | AE3: =DEC2HEX(BITWISE_AND(HEX2DEC(X16),BIN2DEC(11000)),2) -> 18 | AF3: =DEC2HEX(BITWISE_AND(HEX2DEC(X16),BIN2DEC(10100)),2) -> 10 | AG3: =DEC2HEX(BITWISE_AND(HEX2DEC(X16),BIN2DEC(10010)),2) -> 10 | AH3: =DEC2HEX(BITWISE_AND(HEX2DEC(X16),BIN2DEC(11100)),2) -> 18 | AI3: =DEC2HEX(BITWISE_AND(HEX2DEC(X16),BIN2DEC(10010)),2) -> 10 | AK3: Detailed Timing Def. Part 2 (Table 3.22)
C4: 10 | D4: =SUBSTITUTE(EDID!G4," ","") -> 0 | E4: =SUBSTITUTE(EDID!H4," ","") -> 1C | F4: =SUBSTITUTE(EDID!I4," ","") -> 1 | G4: =SUBSTITUTE(EDID!J4," ","") -> 4 | H4: =SUBSTITUTE(EDID!K4," ","") -> A5 | I4: =SUBSTITUTE(EDID!L4," ","") -> 1D | J4: =SUBSTITUTE(EDID!M4," ","") -> 11 | K4: =SUBSTITUTE(EDID!N4," ","") -> 78 | L4: =SUBSTITUTE(EDID!O4," ","") -> 0A | M4: =SUBSTITUTE(EDID!P4," ","") -> 1D | N4: =SUBSTITUTE(EDID!Q4," ","") -> 30 | O4: =SUBSTITUTE(EDID!R4," ","") -> A7 | P4: =SUBSTITUTE(EDID!S4," ","") -> 50 | Q4: =SUBSTITUTE(EDID!T4," ","") -> 47 | R4: =SUBSTITUTE(EDID!U4," ","") -> 97 | S4: =SUBSTITUTE(EDID!V4," ","") -> 27 | U4: 2,4 | V4: H Active | W4: =BITWISE_AND(HEX2DEC(N6),BIN2DEC(11110000))/16 -> 7 | X4: =$L$6 -> 80 | Y4: =W4*256+HEX2DEC(X4) -> 1920 | Z4: =Y4 -> 1920 | AA4: =TEXT(Y4,"0")&" Pixels" -> 1920 Pixels | AC4: =DEC2HEX(0,2) -> 00 | AJ4: =IF(AC4=AC3,"True","False") -> True | AK4: Non-Interlaced
C5: 20 | D5: =SUBSTITUTE(EDID!G5," ","") -> 13 | E5: =SUBSTITUTE(EDID!H5," ","") -> 50 | F5: =SUBSTITUTE(EDID!I5," ","") -> 54 | G5: =SUBSTITUTE(EDID!J5," ","") -> 0 | H5: =SUBSTITUTE(EDID!K5," ","") -> 0 | I5: =SUBSTITUTE(EDID!L5," ","") -> 0 | J5: =SUBSTITUTE(EDID!M5," ","") -> 1 | K5: =SUBSTITUTE(EDID!N5," ","") -> 1 | L5: =SUBSTITUTE(EDID!O5," ","") -> 1 | M5: =SUBSTITUTE(EDID!P5," ","") -> 1 | N5: =SUBSTITUTE(EDID!Q5," ","") -> 1 | O5: =SUBSTITUTE(EDID!R5," ","") -> 1 | P5: =SUBSTITUTE(EDID!S5," ","") -> 1 | Q5: =SUBSTITUTE(EDID!T5," ","") -> 1 | R5: =SUBSTITUTE(EDID!U5," ","") -> 1 | S5: =SUBSTITUTE(EDID!V5," ","") -> 1 | U5: 3,4 | V5: H Blanking | W5: =BITWISE_AND(HEX2DEC(N6),BIN2DEC(1111)) -> 0 | X5: =$M$6 -> A0 | Y5: 160 | Z5: 160 | AA5: =TEXT(Y5,"0")&" Pixels" -> 160 Pixels | AC5: =BIN2HEX(10000000) -> 80 | AJ5: =IF(AC5=AC3,"True","False") -> False | AK5: Interlaced
C6: 30 | D6: =SUBSTITUTE(EDID!G6," ","") -> 1 | E6: =SUBSTITUTE(EDID!H6," ","") -> 1 | F6: =SUBSTITUTE(EDID!I6," ","") -> 1 | G6: =SUBSTITUTE(EDID!J6," ","") -> 1 | H6: =SUBSTITUTE(EDID!K6," ","") -> 1 | I6: =SUBSTITUTE(EDID!L6," ","") -> 1 | J6: =SUBSTITUTE(EDID!M6," ","") -> 70 | K6: =SUBSTITUTE(EDID!N6," ","") -> 6C | L6: =SUBSTITUTE(EDID!O6," ","") -> 80 | M6: =SUBSTITUTE(EDID!P6," ","") -> A0 | N6: =SUBSTITUTE(EDID!Q6," ","") -> 70 | O6: =SUBSTITUTE(EDID!R6," ","") -> 38 | P6: =SUBSTITUTE(EDID!S6," ","") -> 20 | Q6: =SUBSTITUTE(EDID!T6," ","") -> 40 | R6: =SUBSTITUTE(EDID!U6," ","") -> 18 | S6: =SUBSTITUTE(EDID!V6," ","") -> 30 | U6: 5,7 | V6: V Active | W6: =BITWISE_AND(HEX2DEC(Q6),BIN2DEC(11110000))/16 -> 4 | X6: =$O$6 -> 38 | Y6: 1080 | Z6: 1080 | AA6: =TEXT(Y6,"0")&" Lines" -> 1080 Lines | AD6: =BIN2HEX(0,2) -> 00 | AJ6: =IF(AD6=AD3,"True","False") -> False | AK6: Normal Display
C7: 40 | D7: =SUBSTITUTE(EDID!G7," ","") -> 3C | E7: =SUBSTITUTE(EDID!H7," ","") -> 0 | F7: =SUBSTITUTE(EDID!I7," ","") -> 26 | G7: =SUBSTITUTE(EDID!J7," ","") -> A5 | H7: =SUBSTITUTE(EDID!K7," ","") -> 10 | I7: =SUBSTITUTE(EDID!L7," ","") -> 0 | J7: =SUBSTITUTE(EDID!M7," ","") -> 0 | K7: =SUBSTITUTE(EDID!N7," ","") -> 19 | L7: =SUBSTITUTE(EDID!O7," ","") -> 0 | M7: =SUBSTITUTE(EDID!P7," ","") -> 0 | N7: =SUBSTITUTE(EDID!Q7," ","") -> 0 | O7: =SUBSTITUTE(EDID!R7," ","") -> FE | P7: =SUBSTITUTE(EDID!S7," ","") -> 0 | Q7: =SUBSTITUTE(EDID!T7," ","") -> 4D | R7: =SUBSTITUTE(EDID!U7," ","") -> 31 | S7: =SUBSTITUTE(EDID!V7," ","") -> 33 | U7: 6,7 | V7: V Blanking | W7: =BITWISE_AND(HEX2DEC(Q6),BIN2DEC(1111)) -> 0 | X7: =$P$6 -> 20 | Y7: 32 | Z7: 32 | AA7: =TEXT(Y7,"0")&" Lines" -> 32 Lines | AD7: =BIN2HEX(1,2) -> 01 | AJ7: =IF(AD7=AD3,"True","False") -> True | AK7: Normal Display
C8: 50 | D8: =SUBSTITUTE(EDID!G8," ","") -> 33 | E8: =SUBSTITUTE(EDID!H8," ","") -> 4E | F8: =SUBSTITUTE(EDID!I8," ","") -> 56 | G8: =SUBSTITUTE(EDID!J8," ","") -> 46 | H8: =SUBSTITUTE(EDID!K8," ","") -> 33 | I8: =SUBSTITUTE(EDID!L8," ","") -> 20 | J8: =SUBSTITUTE(EDID!M8," ","") -> 52 | K8: =SUBSTITUTE(EDID!N8," ","") -> 32 | L8: =SUBSTITUTE(EDID!O8," ","") -> 20 | M8: =SUBSTITUTE(EDID!P8," ","") -> 0A | N8: =SUBSTITUTE(EDID!Q8," ","") -> 0 | O8: =SUBSTITUTE(EDID!R8," ","") -> 0 | P8: =SUBSTITUTE(EDID!S8," ","") -> 0 | Q8: =SUBSTITUTE(EDID!T8," ","") -> 3 | R8: =SUBSTITUTE(EDID!U8," ","") -> 0 | S8: =SUBSTITUTE(EDID!V8," ","") -> 4 | U8: 8,11 | V8: H Sync Offset (HFP) | W8: =BITWISE_AND(HEX2DEC(E7),BIN2DEC(11000000))/64 -> 0 | X8: =$R$6 -> 18 | Y8: 24 | Z8: 24 | AA8: =TEXT(Y8,"0")&" Pixels" -> 24 Pixels | AD8: =BIN2HEX(100000,2) -> 20 | AJ8: =IF(AD8=AD3,"True","False") -> False | AK8: Field Sequential Stereo R
C9: 60 | D9: =SUBSTITUTE(EDID!G9," ","") -> 36 | E9: =SUBSTITUTE(EDID!H9," ","") -> FF | F9: =SUBSTITUTE(EDID!I9," ","") -> 5 | G9: =SUBSTITUTE(EDID!J9," ","") -> 3C | H9: =SUBSTITUTE(EDID!K9," ","") -> 8D | I9: =SUBSTITUTE(EDID!L9," ","") -> 25 | J9: =SUBSTITUTE(EDID!M9," ","") -> 13 | K9: =SUBSTITUTE(EDID!N9," ","") -> 31 | L9: =SUBSTITUTE(EDID!O9," ","") -> 8D | M9: =SUBSTITUTE(EDID!P9," ","") -> 0 | N9: =SUBSTITUTE(EDID!Q9," ","") -> 0 | O9: =SUBSTITUTE(EDID!R9," ","") -> 0 | P9: =SUBSTITUTE(EDID!S9," ","") -> 0 | Q9: =SUBSTITUTE(EDID!T9," ","") -> 0 | R9: =SUBSTITUTE(EDID!U9," ","") -> 0 | S9: =SUBSTITUTE(EDID!V9," ","") -> 3 | U9: 9,11 | V9: H Sync Pulse Width | W9: =BITWISE_AND(HEX2DEC(E7),BIN2DEC(110000))/16 -> 0 | X9: =$S$6 -> 30 | Y9: 48 | Z9: 48 | AA9: =TEXT(Y9,"0")&" Pixels" -> 48 Pixels | AD9: =BIN2HEX(1000000,2) -> 40 | AJ9: =IF(AD9=AD3,"True","False") -> False | AK9: Field Sequential Stereo L
C10: 70 | D10: =SUBSTITUTE(EDID!G10," ","") -> 0 | E10: =SUBSTITUTE(EDID!H10," ","") -> 6 | F10: =SUBSTITUTE(EDID!I10," ","") -> 18 | G10: =SUBSTITUTE(EDID!J10," ","") -> FF | H10: =SUBSTITUTE(EDID!K10," ","") -> 0F | I10: =SUBSTITUTE(EDID!L10," ","") -> 3C | J10: =SUBSTITUTE(EDID!M10," ","") -> 3B | K10: =SUBSTITUTE(EDID!N10," ","") -> 24 | L10: =SUBSTITUTE(EDID!O10," ","") -> 8 | M10: =SUBSTITUTE(EDID!P10," ","") -> 31 | N10: =SUBSTITUTE(EDID!Q10," ","") -> 3B | O10: =SUBSTITUTE(EDID!R10," ","") -> 1 | P10: =SUBSTITUTE(EDID!S10," ","") -> 1 | Q10: =SUBSTITUTE(EDID!T10," ","") -> 0 | R10: =SUBSTITUTE(EDID!U10," ","") -> 0 | S10: =SUBSTITUTE(EDID!V10," ","") -> BA | U10: 10,11 | V10: V Sync Offset (VFP) | W10: =BITWISE_AND(HEX2DEC(E7),BIN2DEC(1100))/4 -> 0 | X10: =BITWISE_AND(HEX2DEC(D7),BIN2DEC(11110000))/16 -> 3 | Y10: 3 | Z10: 3 | AA10: =TEXT(Y10,"0")&" Lines" -> 3 Lines | AD10: =BIN2HEX(100001,2) -> 21 | AJ10: =IF(AD10=AD3,"True","False") -> False | AK10: 2-way interleaved stereo R
U11: 10,11 | V11: V Sync pulse width | W11: =BITWISE_AND(HEX2DEC(E7),BIN2DEC(11)) -> 0 | X11: =BITWISE_AND(HEX2DEC(D7),BIN2DEC(1111)) -> 12 | Y11: 18 | Z11: 18 | AA11: =TEXT(Y11,"0")&" Lines" -> 18 Lines | AD11: =BIN2HEX(1000001,2) -> 41 | AJ11: =IF(AD11=AD3,"True","False") -> False | AK11: 2-way interleaved stereo L
U12: 12,14 | V12: H Addr Video Img size | W12: =BITWISE_AND(HEX2DEC(H7),BIN2DEC(11110000))/16 -> 1 | X12: =F7 -> 26 | Y12: =W12*256+HEX2DEC(X12) -> 294 | Z12: 294 | AA12: =TEXT(Y12,"0")&"mm" -> 294mm | AD12: =BIN2HEX(1100000,2) -> 60 | AJ12: =IF(AD12=AD3,"True","False") -> False | AK12: 4-way interleaved stereo
U13: 13,14 | V13: V Addr Video Img size | W13: =BITWISE_AND(HEX2DEC(H7),BIN2DEC(1111)) -> 0 | X13: =G7 -> A5 | Y13: =W13*256+HEX2DEC(X13) -> 165 | Z13: 165 | AA13: =TEXT(Y13,"0")&"mm" -> 165mm | AD13: =BIN2HEX(1100001,2) -> 61 | AJ13: =IF(AD13=AD3,"True","False") -> False | AK13: Side-by-Side
U14: 15 | V14: R Horrizontal Border | W14: N/A | X14: =I7 -> 0 | AE14: =BIN2HEX(0,2) -> 00 | AJ14: =IF(AE14=AE3,"True","False") -> False | AK14: Analog Composite Sync
U15: 16 | V15: Top Vertical Border | W15: N/A | X15: =J7 -> 0 | Z15: Polarity | AA15: Value | AE15: =BIN2HEX(1000,2) -> 08 | AJ15: =IF(AE15=AE3,"True","False") -> False | AK15: Bipolar Analog Composite
C16: ="True" -> True | U16: 17 | V16: See Section Below | W16: N/A | X16: =K7 -> 19 | Z16: Hsync Polarity | AA16: =IF(AJ26="False", "POSITIVE","NEGATIVE") -> NEGATIVE | AF16: =BIN2HEX(0,2) -> 00 | AJ16: =IF(AF16=AF3,"True","False") -> False | AK16: Without Serrations
Z17: Vsync Polarity | AA17: =IF(AJ24="False", "POSITIVE","NEGATIVE") -> NEGATIVE | AF17: =BIN2HEX(100,2) -> 04 | AJ17: =IF(AF17=AF3,"True","False") -> False | AK17: With Serrations
AG18: =BIN2HEX(10000000,2) -> 80 | AJ18: =IF(AG18=AG3,"True","False") -> False | AK18: sync on Green signal only
AG19: =BIN2HEX(0,2) -> 00 | AJ19: =IF(AG19=AG3,"True","False") -> False | AK19: Sync on all three vid signals
AE20: =BIN2HEX(10000,2) -> 10 | AJ20: =IF(AE20=AE3,"True","False") -> False | AK20: Digital Composite Sync
AH21: =BIN2HEX(10000,2) -> 10 | AJ21: =IF(AH21=AH3,"True","False") -> False | AK21: Without serrations
AH22: =BIN2HEX(10100,2) -> 14 | AJ22: =IF(AH22=AH3,"True","False") -> False | AK22: With serrations
AE23: =BIN2HEX(11000,2) -> 18 | AJ23: =IF(AE23=AE3,"True","False") -> True | AK23: Digital Separate Sync
AH24: =BIN2HEX(11000,2) -> 18 | AJ24: =IF(AH24=AH3,"True","False") -> True | AK24: Vertical Sync is Negative
AH25: =BIN2HEX(11100,2) -> 1C | AJ25: =IF(AH25=AH3,"True","False") -> False | AK25: Vertical Sync is Positive
AI26: =BIN2HEX(10000,2) -> 10 | AJ26: =IF(AI26=AI3,"True","False") -> True | AK26: Horizontal Sync is Neg
AI27: =BIN2HEX(10010,2) -> 12 | AJ27: =IF(AI27=AI3,"True","False") -> False | AK27: Horizontal Sync is Pos
